Cogmind - Beta 13 @@@ ROGUE MODE // 2024.04.18 @ 13:05:53 Player: Inomamais Result: Self-destructed Performance ------------- Evolutions (1) 500 Regions Visited (2) 400 Robots Destroyed (57) 285 Value Destroyed (1294) 1294 Prototype IDs (3) 60 Alien Tech Used (0) 0 Bonus (38) 38 TOTAL SCORE: 2577 Bonus ------- High Alert Combat Kills 38 Cogmind --------- Core Integrity 258/400 Matter 297/300 Energy 265/265 System Corruption 0% Temperature Cool (0) Movement Rolling (125) Ox3 Location -9/Materials Parts ------- > --- POWER (1) -------- Improved Ion Engine > --- PROPULSION (4) --- Light Treads Light Treads Aluminum Leg Wheel > --- UTILITY (2) ------ Large Storage Unit Hardened Light Armor Plating > --- WEAPON (2) ------- Heavy Assault Rifle Improved Assault Rifle > --- INVENTORY (15) --- Light Nuclear Core Light Treads Aluminum Leg Improved Aluminum Leg Wheel Heat Sink Medium Matter Pod (100) Signal Interpreter Medium Armor Plating Hacking Suite High-powered Tractor Beam Improved Assault Rifle Improved Assault Rifle Improved Assault Rifle Maul Peak State ------------ > --- POWER ------------ Deuterium Engine > --- PROPULSION ------- Light Treads Light Treads Aluminum Leg Wheel > --- UTILITY ---------- Large Storage Unit Hardened Light Armor Plating > --- WEAPON ----------- Heavy Assault Rifle Improved Assault Rifle > --- INVENTORY -------- Light Nuclear Core Aluminum Leg Improved Aluminum Leg Wheel Heat Sink Signal Interpreter Medium Armor Plating Hacking Suite High-powered Tractor Beam Improved Assault Rifle Improved Assault Rifle Improved Assault Rifle Improved Assault Rifle Maul [Rating: 18] Favorites ----------- Power Light Ion Engine Engine Light Ion Engine Propulsion Light Treads Treads Light Treads Leg Aluminum Leg Wheel Wheel Utility Large Storage Unit Device Seismic Detector Storage Large Storage Unit Processor Signal Interpreter Protection Hardened Light Armor Plating Weapon Light Cannon Ballistic Gun Assault Rifle Ballistic Cannon Light Cannon Build | -11 -10 -9 ------- Run | Yrd Mat Mat Slots Evolved 2 | . . 2 Power . | . . . Propulsion 2 | . . 2 Utility . | . . . Weapon . | . . . Parts Attached 45 | 7 20 18 Power 7 | 1 4 2 Engine 7 | 1 4 2 Core . | . . . Reactor . | . . . Propulsion 17 | 2 6 9 Treads 8 | 1 2 5 Leg 5 | . 2 3 Wheel 4 | 1 2 1 Hover . | . . . Flight . | . . . Utility 5 | 2 2 1 Device 1 | 1 . . Storage 2 | 1 1 . Processor 1 | . 1 . Hackware . | . . . Protection 1 | . . 1 Artifact . | . . . Weapon 16 | 2 8 6 Energy Gun . | . . . Energy Cannon . | . . . Ballistic Gun 11 | 2 3 6 Ballistic Cannon 5 | . 5 . Launcher . | . . . Special Weapon . | . . . Impact Weapon . | . . . Slashing Weapon . | . . . Piercing Weapon . | . . . Special Melee Weapon . | . . . Unidentified Prototypes 1 | . . 1 Parts Lost 9 | . 4 5 Power 1 | . . 1 Propulsion 4 | . 2 2 Utility 1 | . 1 . Weapon 3 | . 1 2 Highest Loss Streak 2 | . 2 1 To Critical Strikes . | . . . Average Slot Usage (%) 98 | . 99 98 Engine 11 | . 13 10 Treads 14 | . 14 14 Leg 10 | . 1 18 Wheel 11 | . 12 10 Device 5 | . 13 . Storage 12 | . 14 11 Processor 4 | . . 8 Protection 1 | . . 2 Ballistic Gun 15 | . 13 17 Ballistic Cannon 9 | . 14 4 Naked Turns . | . . . Heaviest Build 40 | 12 32 40 Greatest Support 20 | 16 16 20 Greatest Overweight (x) 3 | 2 2 3 Average Overweight (x) 1 | . . 2 Largest Inventory Capacity 15 | 8 15 15 Average Capacity 14 | 7 14 15 Most Carried 15 | 8 15 15 Average Carried 13 | 5 13 14 Final Capacity 15 | 8 15 15 Final Carried 15 | 8 13 15 Class Distribution -------------------- 68% | Mutant 31% | Scavenger-Mutant Dominant Class ---------------- Mutant | -10/Materials Scavenger-Mutant | -9/Materials Resources | -11 -10 -9 ----------- Run | Yrd Mat Mat Matter Collected 1537 | 262 547 728 Remotely . | . . . Salvage Created 1584 | 52 514 1018 Parts 133 | 11 48 74 Haulers Intercepted 2 | . . 2 Recyclers Shooed 2 | . 1 1 Parts Field Recycled . | . . . Retrieved Matter . | . . . Parts Self-Destructed . | . . . Prevented . | . . . Kills | -11 -10 -9 ------- Run | Yrd Mat Mat Combat Hostiles Destroyed 42 | . 21 21 Guns 26 | . 7 19 Cannons 16 | . 14 2 Classes Destroyed 12 | 1 5 6 Worker 2 | . . 2 Builder 1 | . . 1 Tunneler 3 | 3 . . Hauler 2 | . . 2 Recycler 1 | . . 1 Operator 2 | . 1 1 Watcher 4 | . 2 2 Swarmer 16 | . 9 7 Grunt 18 | . 10 8 Duelist 1 | . . 1 Sentry 5 | . . 5 Subdweller 2 | . 2 . Best Kill Streak 4 | 2 3 4 Combat Bots Only 4 | . 3 4 Max Kills in Single Turn 2 | 1 2 2 Gunslinging . | . . . Exploded . | . . . Melee . | . . . Uniques/NPCs Destroyed . | . . . Combat | -11 -10 -9 -------- Run | Yrd Mat Mat Hostile Shots Fired 186 | . 89 97 Missed 42 | . 16 26 Damage Taken 1609 | . 786 823 Core 257 | . 115 142 Absorbed by Shields . | . . . Core Remaining (%) 77 | 100 54 . Volleys Fired 128 | 12 56 60 Largest 2 | 2 2 2 Hottest 70 | 40 70 58 Shots Fired 253 | 24 112 117 Gun 159 | 24 41 94 Cannon 94 | . 71 23 Launcher . | . . . Special . | . . . Kinetic 253 | 24 112 117 Thermal . | . . . Explosive . | . . . Electromagnetic . | . . . Robot Hit Streak 21 | 5 21 13 Robot Miss Streak 3 | 2 3 2 Penetration Max . | . . . Secondary Targets 2 | . 1 1 Max Gunslinging Chain 1 | . 1 1 Shots Hit Robots 168 | 15 72 81 Core Hits 76 | 5 32 39 Critical Kills 1 | . . 1 Critical Parts Destroyed . | . . . Critical Strikes 2 | . . 2 Destroy 1 | . . 1 Blast 1 | . . 1 Melee Attacks . | . . . Impact . | . . . Slashing . | . . . Piercing . | . . . Sneak Attacks . | . . . Combat Hostiles . | . . . Follow-up Attacks . | . . . Damage Inflicted 2534 | 169 1117 1248 Guns 1617 | 169 429 1019 Cannons 913 | . 684 229 Explosions . | . . . Melee . | . . . Ramming 4 | . 4 . Kinetic 2530 | 169 1113 1248 Thermal . | . . . Explosive . | . . . Electromagnetic . | . . . Impact . | . . . Slashing . | . . . Piercing . | . . . Highest Corruption 2 | . 2 . Average Corruption 1 | . 1 . Corruption Purged . | . . . Corruption Blocked . | . . . Effects 9 | . 9 . Matter Fused 2 | . 2 . Heat Flow Errors 3 | . 3 . Energy Discharges 1 | . 1 . Data Loss (minor) 2 | . 2 . Alerts 1 | . 1 . Overload Shots . | . . . Overflow Damage 11 | . 1 10 Projectiles 11 | . 1 10 Explosions . | . . . Melee . | . . . Knockbacks 11 | . 8 3 Impact . | . . . Kinetic 11 | . 8 3 Secondary . | . . . Self-Inflicted Damage . | . . . Shots . | . . . Rammed 1 | . 1 . Targets Rammed 1 | . 1 . Kicked . | . . . Crushed . | . . . Highest Temperature 257 | . 257 20 Average Temperature 40 | . 48 3 Received Heat Transfer 507 | . 207 300 Effects 2 | . 2 . Interference 2 | . 2 . Siege Activations . | . . . Robots Corrupted . | . . . Combat Hostiles . | . . . Parts Fried . | . . . Impact Corruptions . | . . . Robots Melted . | . . . Combat Hostiles . | . . . Parts Melted . | . . . Heat Transferred . | . . . Parts Sabotaged . | . . . Parts Stolen . | . . . Parts Stripped . | . . . Power Chain Reactions . | . . . Alert | -11 -10 -9 ------- Run | Yrd Mat Mat Peak Influence 500 | 15 291 500 Initial 102 | . 9 102 Average 190 | 4 135 253 Maximum Alert Level 2 | . 1 2 Low Security (%) 57 | 100 77 37 Level 1 37 | . 22 53 Level 2 4 | . . 9 Level 3 . | . . . Level 4 . | . . . Level 5 . | . . . High Security . | . . . Max Security . | . . . Squads Dispatched 5 | . 3 2 Investigation 4 | . 2 2 Extermination . | . . . Reinforcement 1 | . 1 . Assault . | . . . Garrison . | . . . Intercept . | . . . Searches Triggered . | . . . Construction Impeded . | . . . Haulers Reinforced . | . . . Active Scanning Responses . | . . . Cargo Convoy Interrupts . | . . . Stealth | -11 -10 -9 --------- Run | Yrd Mat Mat Distress Signals 4 | . 1 3 Communications Jammed . | . . . Distress Signals . | . . . Times Spotted 61 | . 31 30 Peak Tracking Total 5 | . 4 5 Tactical Retreats 5 | . 2 3 Traps | -11 -10 -9 ------- Run | Yrd Mat Mat Traps Triggered 8 | . 7 1 Indirectly . | . . . Trap Hack Attempts . | . . . Triggered . | . . . Disarmed . | . . . Reprogrammed . | . . . Reused . | . . . Traps Extracted . | . . . Installed . | . . . Triggered . | . . . Machines | -11 -10 -9 ---------- Run | Yrd Mat Mat Machines Disabled 1 | . 1 . Max in Single Turn 1 | . 1 . Machines Repaired . | . . . Machines Dismantled . | . . . Machines Sabotaged . | . . . Overloaded Fab Kills . | . . . Hacking | -11 -10 -9 --------- Run | Yrd Mat Mat Machines Accessed 9 | . 5 4 Terminals 8 | . 5 3 Fabricators . | . . . Repair Stations 1 | . . 1 Recycling Units . | . . . Scanalyzers . | . . . Garrison Access . | . . . Total Hacks 26 | . 16 10 Successful 7 | . 3 4 Failed 19 | . 13 6 Catastrophic 2 | . 2 . Database Lockouts . | . . . Manual 18 | . 12 6 Terminals 24 | . 16 8 Fabricators . | . . . Repair Stations 2 | . . 2 Recycling Units . | . . . Scanalyzers . | . . . Garrison Access . | . . . Terminal Hacks 3 | . 2 1 Prototype ID Bank 1 | . . 1 Branch Access Points 1 | . 1 . Locate Traps 1 | . 1 . Fabricator Hacks . | . . . Repair Station Hacks 1 | . . 1 Scan Component 1 | . . 1 Recycling Unit Hacks . | . . . Scanalyzer . | . . . Garrison Access Hacks . | . . . Unauthorized Hacks 3 | . 1 2 Terminals 3 | . 1 2 Botnet 3 | . 1 2 Fabricators . | . . . Repair Stations . | . . . Recycling Units . | . . . Scanalyzers . | . . . Garrison Access . | . . . Data Cores Recovered 1 | . . 1 Used . | . . . Hacking Detections 9 | . 5 4 Full Trace Events 1 | . . 1 Feedback Events . | . . . Feedback Blocked . | . . . Robot Schematics Acquired . | . . . Robots Built . | . . . Authchips . | . . . Time . | . . . Total Robot Build Rating . | . . . Part Schematics Acquired . | . . . Parts Built . | . . . Authchips . | . . . Time . | . . . Total Part Build Rating . | . . . Parts Repaired . | . . . Time . | . . . Parts Recycled . | . . . Recycled Matter . | . . . Retrieved Matter . | . . . Retrieved Components . | . . . Parts Scanalyzed . | . . . Part Schematics Acquired . | . . . Parts Damaged . | . . . Bothacking | -11 -10 -9 ------------ Run | Yrd Mat Mat Used RIF Installer . | . . . Robots Hacked . | . . . Non-combat . | . . . Combat . | . . . Robot Hacks Applied . | . . . Relay Couplers Released . | . . . Fabnet Peak Effective % . | . . . Robots Rewired . | . . . Allies Hacked . | . . . Hacks Repelled . | . . . Allies | -11 -10 -9 -------- Run | Yrd Mat Mat Total Allies . | . . . Largest Group . | . . . Highest-Rated Group . | . . . Highest-Rated Ally . | . . . Total Orders . | . . . Ally Attacks . | . . . Total Damage . | . . . Kills . | . . . Allies Corrupted . | . . . Allies Melted . | . . . Intel | -11 -10 -9 ------- Run | Yrd Mat Mat Robot Analysis Total . | . . . Derelict Logs Recovered . | . . . Drone Launches . | . . . Drone Recoveries . | . . . Exploration | -11 -10 -9 ------------- Run | Yrd Mat Mat Turns Passed 2483 | 133 1045 1305 Spaces Moved 1394 | 77 602 715 Core 3 | 3 . . Treads 66 | . . 66 Legs 22 | . 22 . Wheels 1303 | 74 580 649 Hover . | . . . Flight . | . . . Fastest Speed 50 | 50 100 110 Average Speed 124 | 100 118 132 Slowest Speed 260 | 150 260 240 Overloaded Moves . | . . . Propulsion Burnouts . | . . . Robots Hopped . | . . . Cave-ins Triggered . | . . . Exploration Rate (%) 52 | 4 94 58 Regions Visited 2 Branch Regions . Pre-discovered Areas . | . . . Known Exits Taken 1 | . 1 . Unknown Exits Taken 1 | 1 . . Scrap Searched . | . . . Spaces Dug . | . . . Terrain Destroyed . | . . . Melee . | . . . Projectile . | . . . AOE . | . . . Terrain Rammed . | . . . Walls Destroyed . | . . . Machines Disabled . | . . . Actions | -11 -10 -9 --------- Run | Yrd Mat Mat Total 1895 | 107 821 967 Wait 257 | 4 116 137 Move 1392 | 76 601 715 Hop . | . . . Pick Up 42 | 8 16 18 Fast Attach 13 | 7 4 2 Attach 11 | . 5 6 Detach . | . . . Swap 21 | . 11 10 Drop 30 | . 11 19 Fire 128 | 12 56 60 Melee . | . . . Ram . | . . . Kick . | . . . Crush 1 | . 1 . Escape Stasis . | . . . Rewire . | . . . Trap . | . . . Miscellaneous . | . . . Route ------- -11/Scrapyard -10/Materials (discovered 5 exits: *Mat x3 / *Min x2) -9/Materials (discovered 4 exits: *Mat x2 / *Sto x2) History --------- Turn | Location | Event 18 | -11/Scrapyard | Discovered new exit (range 15) 134 | -11/Scrapyard | Entered Materials 272 | -10/Materials | Discovered new exit (range 6) 338 | -10/Materials | Discovered new exit (range 13) 345 | -10/Materials | Build established: Mutant 465 | -10/Materials | Discovered new exit (range 3) 711 | -10/Materials | Discovered new exit (range 4) 809 | -10/Materials | Identified exit to Mines 834 | -10/Materials | Derelicts attacked the area 1177 | -10/Materials | Identified exit to Materials 1179 | -10/Materials | Entered another Materials area 1179 | -9/Materials | Evolved 2 slots: Propulsion x2 1833 | -9/Materials | Discovered new exit (range 12) 1874 | -9/Materials | Discovered new exit (range 15) 1919 | -9/Materials | Identified exit to Storage 2017 | -9/Materials | Build established: Scavenger-Mutant 2134 | -9/Materials | Discovered new exit (range 5) 2149 | -9/Materials | Identified exit to Materials 2381 | -9/Materials | Discovered exit to Materials (range 16) 2484 | -9/Materials | Self-destructed Last Messages --------------- 02258_ L-31 Rogue destroyed. 02258_ Switching to secondary target: G-34 Mercenary. 02260_ Deuterium Engine destroyed. 02270_ G-34 Mercenary destroyed. 02278_ Acquired 39 matter. 02280_ Dropped Aluminum Leg. 02281_ K-01 Serf collects debris. 02283_ Acquired 46 matter. 02286_ K-01 Serf collects debris. 02299_ U-05 Engineer destroyed. 02303_ Acquired 16 matter. 02308_ Imp. Assault Rifle destroyed. 02312_ G-34 Mercenary destroyed. 02316_ Acquired 50 matter. 02367_ Y-45 Defender destroyed. 02374_ Acquired Imp. Ion Engine. 02375_ Acquired 52 matter. 02379_ Dropped Lgt. Treads. 02381_ EXIT=FOUND: MATERIALS 02442_ Acquired 7 matter. Map ----- +----------------------------------------------------+ | ??????# #?????????# # [ ##????????????????? | | ??????# #?????????# ##############???????????? | | ??????# #??######## ????????????? | | ??????# #??# """ # ???????????? | | ####### #??# """ # ????????????? | | # = # #??# """ + #####?????????????? | | # # #??# # #?????????????????? | | # """ # #??# # #?????????????????? | | # """ # #??# # ###########???????? | | # """ # #??############### # #???????? | | # # #????????????????# # #???????? | | # %%[ # #????????????????# # !! #???????? | | ###+### ########??#####??# + ! #???????? | | **[** # #???????? | | [ ^ # +???????? | | ^ # #???????? | | # ######+########## ######## #???????? | | # % #?????? #???????# #??????####+######???????? | | # %#???????#???????# #?????????# #????????????? | | # #???????????????+ #?????????# #????????????? | | # [#???????????????# #?????????# #????????????? | | # #???????????????# ########### #????????????? | | # #???????????????# # # #????????????? | | # #???????????????# # # #????????????? | | # #???????######??# # # #????????????? | | # #???????# #??# #@ # #????????????? | | # %#???????# #### + # #????????????? | | #! #???????# + # #=#########????? | | #% #??###### # # # # #????? | | **%#??# # # # #|# """"" #????? | | !*[#??# ## # ########+##!# """"" #????? | | ! #??# ###### #??????# !/+ """"" #????? | | #### #????# #??????# =# #????? | | + #????# ######## * #####+###????? | | #### #????# [ #??????? | | # #??# # # ######## ##########??????? | | # #### # + #??????# #???????????????? | | / # #####+#####???# #???????????????? | | / ######### ????# #???# #???????????????? | | #?????????????# """ ##### ####????????????? | | #####?????????????# """ + ! ########?????? | | ??????????????????# """ ######## # "" #???? | | ??????????????????# #??????#!# ""S #???? | | ###???????????????# """ #??????#=# "" #???? | | #???????????????# """ #??????# # #???? | | #???????????????# """ #????### # #???? | | #???????????????# #????# # """ #???? | | #???????????????############### + """ #???? | | #???????????????????# ## # """ #???? | | #???????????????????# """"" ## # #???? | +----------------------------------------------------+ Best States ------------- Heat Dissipation 28 Energy Generation 14 Energy Capacity 275 Matter Stores 300 Matter Capacity 300 Sight Range 16 Terrain Scan Density 10 Armor Coverage 150 Evasion (%) 40 Recoil Reduction 2 Item Schematics ----------------- None Robot Schematics ------------------ None Fabricated ------------ Nothing Alien Tech Used ----------------- None Achievements -------------- None Challenges ------------ None Game ------ Seed GunBombStreamer Manual? 0 Play Time 00:33:27 Cumulative 101.7 hours Start 2024.04.18 @ 12:01:01 End 2024.04.18 @ 13:05:53 Sessions 1 Manual Loads 0 Difficulty Rogue Special Mode None Game No. 55 Rogue 54 Adventurer 1 Explorer 0 Win Type - Total 2 Types 2/0/0/0/0/0/0/0/0 Lore% 50 Gallery% 44 Achievement% 41 Wizard Run 0 Options --------- Layout 0 ASCII 1 Keyboard 1 Movement Numpad Keybinds 0 Fullscreen 1 Font 18/SmallcapsGlow Map View 76x50 Zoom Use 0% Tactical HUD 1 Map Filters NONE Filters NONE Steam 1 RUN: 2e3b7a75-df3f-4e04-80ac-46a2c412146d